bitfinex-derivatives/quotes_SOLF0:USTF0_20260213
["timestamp","ask_amount","ask_price","bid_price","bid_amount"]
[1770984161047,11.2372,80.151,80.11,7.01880187]
[1770984161245,11.2372,80.151,80.111,3.82842168]
[1770984161443,11.2361,80.159,80.121,3.82842168]
[1770984161644,11.2361,80.159,80.13,3.19038019]
[1770984161843,3.95825029,80.169,80.13,3.19038019]
[1770984162451,3.95825029,80.169,80.121,3.82842168]
[1770984163742,11.2359,80.161,80.121,3.82842168]
[1770984164049,11.2359,80.161,80.131,3.2]
[1770984164555,15.19305029,80.169,80.131,3.2]
[1770984164954,3.95595302,80.182,80.14,3.19038019]
[1770984165955,11.2337,80.177,80.134,3.82842168]
[1770984167243,11.2344,80.171,80.134,3.82842168]
[1770984167448,4.00497801,80.169,80.131,3.2]
[1770984168242,4.00497801,80.169,80.132,3.82842168]
[1770984169754,11.235,80.167,80.132,3.82842168]
[1770984170649,11.2337,80.177,80.14,7.01880187]
[1770984172155,11.2347,80.169,80.14,7.01880187]
[1770984172351,3.94774573,80.168,80.131,3.2]
[1770984172754,11.2354,80.164,80.131,3.2]
[1770984173051,3.94774573,80.168,80.131,3.2]
[1770984174254,11.2364,80.157,80.131,3.2]
[1770984174958,11.2372,80.151,80.131,3.2]
[1770984178859,11.238,80.146,80.116,3.82842168]
[1770984179657,11.238,80.146,80.11,3.19038019]
[1770984179658,11.239,80.139,80.11,3.19038019]
[1770984180555,3.93783683,80.146,80.105,11.2436]
[1770984180757,3.93783683,80.146,80.11,7.19848997]
[1770984181055,11.239,80.139,80.11,4.00810978]
[1770984181257,3.93783683,80.146,80.101,4.00810978]
[1770984181758,22.4694,80.169,80.078,121.04]
[1770984181759,11.2405,80.128,80.09,3.19038019]
[1770984182457,11.2405,80.128,80.09,14.43598019]
[1770984182759,3.93336624,80.135,80.09,7.19848997]
[1770984183149,3.93336624,80.135,80.091,4.00810978]
[1770984183354,3.93336624,80.135,80.1,3.19038019]
[1770984183660,11.2397,80.133,80.1,18.44268997]
[1770984183860,3.93336624,80.135,80.101,4.00810978]
[1770984184057,3.94699153,80.15,80.11,3.19038019]
[1770984184258,9.64544356,80.149,80.11,3.19038019]
[1770984184560,3.94699153,80.147,80.11,3.19038019]
[1770984184761,11.2387,80.141,80.11,3.19038019]
[1770984185056,3.94699153,80.147,80.101,4.00810978]
[1770984185257,3.95112564,80.145,80.101,4.00810978]
[1770984185563,3.95112564,80.128,80.09,3.19038019]
[1770984185950,3.95112564,80.128,80.088,4.00810978]
[1770984186155,3.95112564,80.128,80.08,3.19038019]
[1770984186357,3.95112564,80.128,80.09,3.19038019]
[1770984186861,11.2415,80.121,80.09,3.19038019]
[1770984189359,11.2415,80.121,80.081,4.00810978]
[1770984189360,11.2415,80.121,80.083,11.2467]
[1770984190265,11.2415,80.121,80.083,15.25480978]
[1770984190466,15.19459224,80.118,80.083,15.25480978]
[1770984190767,3.95269224,80.118,80.083,15.25480978]
[1770984191367,11.241,80.125,80.09,7.19848997]
[1770984191563,9.643099,80.139,80.1,3.19038019]
[1770984191768,3.95514732,80.158,80.103,4.00810978]
[1770984192164,15.53874877,80.191,80.103,4.00810978]
[1770984192165,3.95514732,80.149,80.103,4.00810978]
[1770984192360,3.95514732,80.149,80.09,3.19038019]
[1770984192565,3.95514732,80.149,80.091,4.00810978]
[1770984193166,3.96549095,80.138,80.091,4.00810978]
[1770984194765,11.241,80.124,80.091,4.00810978]
[1770984194968,3.96549095,80.119,80.077,4.00810978]
[1770984195269,11.2456,80.092,80.046,4.00810978]
[1770984195464,11.2456,80.092,80.051,4.00810978]
[1770984195669,3.96549095,80.109,80.051,4.00810978]
[1770984196763,11.2454,80.093,80.054,4.00810978]
[1770984196969,11.2454,80.093,80.06,3.19038019]
[1770984197971,11.2454,80.093,80.054,4.00810978]
[1770984198871,11.2454,80.093,80.05,3.19038019]
[1770984198872,3.96549095,80.087,80.001,4.00810978]
[1770984199070,3.96549095,80.079,80.03,3.19038019]
[1770984199970,3.96549095,80.066,80.03,3.19038019]
[1770984200673,11.2493,80.065,80.028,4.00810978]
[1770984200872,3.96549095,80.064,80.02,3.19038019]
[1770984201075,3.96549095,80.059,80.015,4.00810978]
[1770984201272,3.19038019,80.06,80.01,3.19038019]
[1770984201273,3.96549095,80.051,80.01,3.19038019]
[1770984201574,3.96549095,80.051,80.001,15.26630978]
[1770984201876,3.96549095,80.051,80.01,3.19038019]
[1770984202066,3.96549095,80.051,80.001,4.00810978]
[1770984202265,3.96549095,80.049,80.001,4.00810978]
[1770984202671,3.96549095,80.049,80.011,4.00810978]
[1770984203375,11.2501,80.059,80.011,4.00810978]
[1770984203576,3.96549095,80.075,80.03,3.19038019]
[1770984204077,3.96549095,80.075,80.03,7.19848997]
[1770984204770,11.2485,80.071,80.03,7.19848997]
[1770984206276,11.2485,80.071,80.03,4.00810978]
[1770984206469,11.2485,80.071,80.03,7.19848997]
[1770984206870,11.2501,80.059,80.03,4.00810978]
[1770984207673,11.2501,80.059,80.02,3.19038019]
[1770984208470,11.2491,80.067,80.021,11.2554]
[1770984208676,11.2491,80.067,80.03,3.19038019]
[1770984209180,11.2491,80.067,80.022,4.00810978]
[1770984209579,3.72557819,80.05,80.01,3.19038019]
[1770984210176,3.72557819,80.05,80.01,7.19848997]
[1770984210380,3.72557819,80.05,80.011,4.00810978]
[1770984210674,14.97142999,80.055,80.011,4.00810978]
[1770984210870,3.72062999,80.049,80.0,102.69038019]
[1770984211074,11.2535,80.035,80.0,3.19038019]
[1770984211274,11.2535,80.035,80.001,4.18117666]
[1770984212478,11.2535,80.035,79.991,11.2595]
[1770984213282,3.67468659,80.039,79.997,11.2587]
[1770984213579,3.67468659,80.019,79.967,4.18117666]
[1770984213772,3.67468659,80.019,79.97,3.19038019]
[1770984214172,3.67468659,80.019,79.97,7.37155685]
[1770984214776,11.2576,80.006,79.97,4.18117666]
[1770984215168,3.67468659,80.019,79.97,4.18117666]
[1770984215876,3.67468659,80.019,79.95,8.57694341]
[1770984215877,11.2566,80.013,79.972,4.04903813]
[1770984216179,3.67468659,80.019,79.972,4.04903813]
[1770984218184,11.2569,80.011,79.972,4.04903813]
[1770984218387,3.58222336,80.039,79.972,4.04903813]
[1770984218780,11.2549,80.025,79.981,4.04903813]
[1770984219578,3.53992207,80.031,79.965,4.04903813]
[1770984220283,3.53992207,80.031,79.99,11.2598]
[1770984220491,11.2535,80.035,79.991,4.04903813]
[1770984221789,11.2535,80.035,79.994,4.04903813]
[1770984221989,11.2537,80.034,79.994,4.04903813]
[1770984222787,11.2537,80.034,79.98,8.57050822]
[1770984222788,11.2523,80.044,79.996,4.04903813]
[1770984223790,3.37645797,80.035,79.971,4.04903813]
[1770984224486,3.37645797,80.035,79.975,4.04903813]
[1770984225692,3.37645797,80.035,79.978,4.04903813]
[1770984226894,11.2539,80.032,79.985,4.04903813]
[1770984227096,3.37645797,80.035,79.985,4.04903813]
[1770984227289,11.2557,80.02,79.985,4.04903813]
[1770984228894,11.2546,80.027,79.987,11.2602]
[1770984229988,3.31119818,80.024,79.948,4.04903813]
[1770984230194,3.31119818,80.024,79.951,4.04903813]
[1770984231394,3.28889312,80.002,79.952,11.2651]
[1770984232595,11.2597,79.991,79.951,4.04903813]
[1770984232997,11.2597,79.991,79.951,15.31433813]
[1770984233187,3.32543292,79.986,79.938,103.56903813]
[1770984233593,3.32543292,79.986,79.939,4.04903813]
[1770984233997,3.32543292,79.986,79.955,11.2646]
[1770984234684,11.259,79.996,79.955,11.2646]
[1770984234883,11.259,79.996,79.96,3.20263665]
[1770984237397,11.259,79.996,79.978,3.2]
[1770984237597,3.32543292,80.001,79.978,3.2]
[1770984238296,11.2589,79.997,79.978,3.2]
[1770984238600,11.2589,79.997,79.96,3.20263665]
[1770984239893,3.34652599,79.997,79.956,4.04903813]
[1770984240205,3.34652599,79.997,79.96,3.20263665]
[1770984240592,3.34652599,79.997,79.956,4.04903813]
[1770984240797,3.34652599,79.997,79.95,3.20263665]
[1770984241494,14.57883234,79.993,79.951,11.2653]
[1770984241899,14.57883234,79.993,79.951,15.36526307]
[1770984242100,3.31823234,79.993,79.951,4.09996307]
[1770984242296,3.31823234,79.993,79.95,3.20263665]
[1770984242500,3.31823234,79.989,79.94,3.20263665]
[1770984242697,3.31823234,79.974,79.927,4.09996307]
[1770984242906,3.31823234,79.986,79.94,7.30259972]
[1770984243201,3.31333957,79.998,79.951,4.09996307]
[1770984243596,3.31333957,79.998,79.96,3.20263665]
[1770984243796,11.2601,79.988,79.96,3.20263665]
[1770984244292,3.31333957,79.998,79.96,3.20263665]
[1770984244499,11.2592,79.994,79.96,3.20263665]
[1770984245504,3.31333957,79.998,79.962,11.2636]
[1770984245700,3.4193892,80.01,79.961,4.09996307]
[1770984245906,3.4193892,80.01,79.98,3.20263665]
[1770984246107,11.2573,80.008,79.971,4.09996307]
[1770984246609,3.4193892,80.022,79.98,3.20263665]
[1770984247310,11.2571,80.01,79.98,3.20263665]
[1770984247503,3.43718382,80.019,79.96,3.20263665]
[1770984247903,11.2586,79.999,79.961,11.2638]
[1770984248206,3.43718382,80.009,79.96,3.20263665]
[1770984248807,11.2586,79.999,79.961,11.2638]
[1770984249108,3.54425875,79.998,79.961,11.2638]
[1770984249802,11.2588,79.997,79.96,3.20263665]
[1770984250002,3.54425875,79.997,79.95,3.20263665]
[1770984250404,11.2597,79.991,79.951,15.36516307]
[1770984251211,11.2597,79.991,79.953,11.2649]
[1770984252111,3.54250756,79.991,79.94,3.20263665]
[1770984252700,11.2619,79.976,79.94,3.20263665]
[1770984253711,14.80527426,79.983,79.94,3.20263665]
[1770984254207,11.2591,79.995,79.96,3.20263665]
[1770984254410,11.2591,79.995,79.961,4.09996307]
[1770984254714,11.2601,79.989,79.961,4.09996307]
[1770984255813,11.2591,79.996,79.961,4.09996307]
[1770984256416,3.53798451,80.005,79.961,4.09996307]
[1770984256915,11.259,79.996,79.961,4.09996307]
[1770984261018,11.2598,79.99,79.961,4.09996307]
[1770984261218,3.53798451,80.005,79.961,4.09996307]
[1770984261619,3.53798451,80.005,79.97,3.20263665]
[1770984263917,11.2579,80.004,79.97,3.20263665]
[1770984264617,3.53798451,80.005,79.971,11.2624]
[1770984264822,3.53798451,80.005,79.971,15.36236307]
[1770984265325,14.79578451,80.005,79.971,4.09996307]
[1770984267327,14.79578451,80.005,79.971,15.36236307]
[1770984267829,11.2568,80.012,79.972,4.09996307]
[1770984268527,11.2568,80.012,79.947,118.78]
[1770984268528,3.3798898,80.017,79.981,4.09996307]
[1770984268729,9.59402611,80.016,79.981,4.09996307]
[1770984268929,3.3798898,80.017,79.981,4.09996307]
[1770984270419,3.38309172,80.011,79.97,3.20263665]
[1770984271333,3.38309172,80.011,79.971,3.8243228]
[1770984272730,3.38309172,80.011,79.975,11.2618]
[1770984273234,3.38309172,80.011,79.98,3.20263665]
[1770984273531,3.38309172,80.011,79.98,14.46373665]
[1770984274227,11.2554,80.022,79.99,3.20263665]
[1770984275034,11.2562,80.016,79.99,3.20263665]
[1770984275732,11.2552,80.023,79.991,4.07405981]
[1770984276134,9.61796097,80.022,79.991,4.07405981]
[1770984276332,11.2557,80.02,79.991,4.07405981]
[1770984278530,3.18557328,80.017,79.981,11.261]
[1770984278732,9.61121244,80.016,79.96,3.20263665]
[1770984278930,3.18557328,80.014,79.97,7.27669646]
[1770984279130,9.61121244,80.013,79.97,7.27669646]
[1770984279428,9.61121244,80.012,79.971,4.07405981]
[1770984279632,3.18557328,80.014,79.971,4.07405981]
[1770984279937,9.61127213,80.013,79.972,4.07405981]
[1770984280135,9.61127213,80.012,79.972,4.07405981]
[1770984280336,3.18557328,80.014,79.972,4.07405981]
[1770984280537,9.61254908,80.013,79.972,4.07405981]
[1770984280737,9.61254908,80.012,79.972,4.07405981]
[1770984280932,3.18557328,80.014,79.972,4.07405981]
[1770984281237,9.61129566,80.013,79.972,4.07405981]
[1770984281439,9.61129566,80.012,79.972,4.07405981]
[1770984281638,3.18557328,80.014,79.972,4.07405981]
[1770984281838,11.257,80.01,79.974,4.07405981]
[1770984282235,3.18557328,80.014,79.974,4.07405981]
[1770984282434,11.2578,80.004,79.974,4.07405981]
[1770984283534,11.2578,80.004,79.97,3.20161372]
[1770984284939,3.17823074,79.999,79.967,11.263]
[1770984286643,11.2564,80.015,79.977,11.2615]
[1770984286843,9.60939675,80.014,79.977,11.2615]
[1770984287035,9.60939675,80.013,79.977,11.2615]
[1770984287237,9.60939675,80.012,79.977,11.2615]
[1770984287432,3.20161372,80.03,79.97,3.20161372]
[1770984287433,3.15964844,80.01,79.97,3.20161372]
[1770984288038,3.15964844,80.01,79.97,14.46411372]
[1770984288238,3.15964844,80.021,79.971,4.07405981]
[1770984288444,3.15964844,80.019,79.971,4.07405981]
[1770984288642,9.61277242,80.018,79.971,4.07405981]
[1770984288943,3.15964844,80.016,79.971,4.07405981]
[1770984289244,3.13279591,80.014,79.971,4.07405981]
[1770984289444,3.13279591,80.012,79.971,4.07405981]
[1770984289743,11.2578,80.005,79.971,4.07405981]
[1770984291738,11.2585,80.0,79.97,3.20161372]
[1770984292646,11.2593,79.994,79.959,4.07405981]
[1770984292833,11.2593,79.994,79.96,3.20161372]
[1770984293239,11.2593,79.994,79.963,4.07405981]
[1770984295951,3.0594791,79.999,79.965,11.2632]
[1770984296150,3.0594791,79.999,79.965,15.33725981]
[1770984296845,11.2588,79.998,79.965,4.07405981]
[1770984297145,3.07749577,79.997,79.96,3.20161372]
[1770984298754,11.2596,79.992,79.96,3.20161372]
[1770984298944,3.07749577,80.012,79.971,4.07405981]
[1770984299140,3.07315039,80.01,79.971,4.07405981]
[1770984299339,3.07315039,80.008,79.971,4.07405981]
[1770984299548,3.07315039,80.006,79.971,4.07405981]
[1770984299747,11.2581,80.002,79.971,4.07405981]
[1770984300547,11.2573,80.008,79.972,4.07405981]
[1770984300750,9.60769374,80.007,79.972,4.07405981]
[1770984300945,14.33138426,80.019,79.98,3.20161372]
[1770984301151,9.60882172,80.018,79.981,4.01523195]
[1770984301347,9.60882172,80.017,79.981,4.01523195]
[1770984301555,9.60882172,80.016,79.981,4.01523195]
[1770984301755,3.08797751,80.014,79.97,3.20161372]
[1770984302053,3.08797751,80.012,79.97,3.20161372]
[1770984302249,3.08797751,80.01,79.97,4.01523195]
[1770984302455,3.08797751,80.008,79.97,7.21684567]
[1770984302655,9.60876861,80.007,79.97,7.21684567]
[1770984302850,9.60876861,80.006,79.97,7.21684567]
[1770984303051,3.08797751,80.008,79.97,7.21684567]
[1770984303251,9.60943595,80.007,79.97,7.21684567]
[1770984303446,9.60943595,80.006,79.97,7.21684567]
[1770984303654,3.08797751,80.008,79.97,7.21684567]
[1770984303850,11.258,80.003,79.97,7.21684567]
[1770984304049,11.58293476,80.024,79.964,11.2633]
[1770984304050,3.06767233,80.006,79.964,11.2633]
[1770984304357,3.06767233,80.004,79.964,11.2633]
[1770984304754,11.2588,79.998,79.96,3.20161372]
[1770984304957,3.06767233,80.004,79.961,4.01523195]
[1770984305158,2.99749341,80.002,79.961,4.01523195]
[1770984305757,11.2583,80.001,79.961,4.01523195]
[1770984305959,14.25579341,80.001,79.961,4.01523195]
[1770984307062,3.0251993,80.0,79.961,4.01523195]
[1770984309966,11.2586,79.999,79.961,4.01523195]
[1770984310169,3.02497498,79.997,79.961,4.01523195]
[1770984310872,3.02497498,79.995,79.958,119.18]
[1770984312367,3.02497498,79.995,79.956,15.27973195]
[1770984312874,3.02497498,79.995,79.957,4.01523195]
[1770984313268,3.02497498,79.995,79.96,7.21684567]
[1770984313466,11.2593,79.994,79.96,7.21684567]
[1770984313662,11.2593,79.994,79.96,4.01523195]
[1770984313866,14.27644411,79.994,79.96,4.01523195]
[1770984314565,9.59791379,79.993,79.96,4.01523195]
[1770984314862,14.27644411,79.994,79.96,4.01523195]
[1770984315066,9.59791526,79.993,79.96,4.01523195]
[1770984315274,14.27644411,79.994,79.96,4.01523195]
[1770984315475,9.59695168,79.993,79.96,4.01523195]
[1770984315675,14.27644411,79.994,79.96,4.01523195]
[1770984315876,9.59694075,79.993,79.96,4.01523195]
[1770984316075,14.27644411,79.994,79.96,4.01523195]
[1770984316276,9.59603448,79.993,79.96,4.01523195]
[1770984316477,14.27644411,79.994,79.96,4.01523195]
[1770984316679,9.59603255,79.993,79.96,4.01523195]
[1770984316878,14.27644411,79.994,79.96,4.01523195]
[1770984317078,9.59603255,79.993,79.96,4.01523195]
[1770984317278,14.27644411,79.994,79.96,4.01523195]
[1770984317472,9.59518323,79.993,79.96,4.01523195]
[1770984317672,14.27644411,79.994,79.96,4.01523195]
[1770984317867,9.59517811,79.993,79.96,4.01523195]
[1770984318073,14.27644411,79.994,79.96,4.01523195]
[1770984318278,9.59524777,79.993,79.96,4.01523195]
[1770984318472,14.27644411,79.994,79.96,4.01523195]
[1770984318674,2.89556757,79.992,79.948,125.79523195]
[1770984318875,2.89556757,79.989,79.948,125.79523195]
[1770984319175,2.89624734,79.987,79.948,125.79523195]
[1770984319375,2.89624734,79.97,79.93,3.20161372]
[1770984319584,2.89624734,79.968,79.924,4.01523195]
[1770984319782,3.20161372,79.97,79.913,4.01523195]
[1770984319783,2.89624734,79.954,79.913,4.01523195]
[1770984320079,2.89624734,79.949,79.902,4.01523195]
[1770984320276,11.2678,79.934,79.902,4.01523195]
[1770984320481,2.89624734,79.929,79.89,4.01523195]
[1770984320780,3.20161372,79.93,79.89,4.01523195]
[1770984320781,2.89624734,79.927,79.89,4.01523195]
[1770984321787,11.269,79.925,79.882,4.01523195]
[1770984322088,12.53390811,79.937,79.876,3.8781599]
[1770984322089,2.98233603,79.937,79.89,3.20161372]
[1770984322580,3.20161372,79.93,79.89,3.20161372]
[1770984322774,2.98233603,79.929,79.889,4.01523195]
[1770984323171,2.98233603,79.929,79.89,3.20161372]
[1770984323372,11.2675,79.935,79.891,4.01523195]
[1770984323881,3.04933157,79.926,79.881,4.01523195]
[1770984324079,3.04933157,79.919,79.876,3.8781599]
[1770984324585,3.04933157,79.915,79.876,3.8781599]
[1770984324983,3.04933157,79.909,79.876,3.8781599]
[1770984325381,3.17161356,79.907,79.876,5.99e-05]
[1770984325688,3.17161356,79.889,79.876,5.99e-05]
[1770984325874,3.17161356,79.901,79.876,5.99e-05]
[1770984326276,3.17161356,79.899,79.876,5.99e-05]
[1770984326681,3.17161356,79.889,79.876,5.99e-05]
[1770984326880,3.17161356,79.887,79.84,3.20161372]
[1770984327683,3.17161356,79.887,79.841,4.01523195]
[1770984328287,14.1691804,79.886,79.841,4.01523195]
[1770984328678,2.8946804,79.879,79.811,4.01523195]
[1770984328885,2.8946804,79.866,79.819,4.01523195]
[1770984329084,2.8946804,79.866,79.82,3.20161372]
[1770984329476,2.8946804,79.866,79.819,4.01523195]
[1770984329477,2.85984562,79.863,79.819,4.01523195]
[1770984330079,2.85984562,79.863,79.82,3.20161372]
[1770984330287,2.85984562,79.876,79.84,7.21684567]
[1770984330486,2.85984562,79.889,79.841,4.01523195]
[1770984331188,11.2743,79.888,79.841,4.01523195]
[1770984331486,11.2743,79.888,79.85,3.20161372]
[1770984331876,11.2726,79.9,79.861,3.98859799]
[1770984332082,17.2830066,79.9,79.861,3.98859799]
[1770984332780,14.08139288,79.9,79.861,3.98859799]
[1770984332978,11.2737,79.892,79.85,3.20161372]
[1770984334389,11.2737,79.892,79.847,3.98859799]
[1770984334986,11.2724,79.901,79.851,3.98859799]
[1770984335788,11.2736,79.892,79.851,3.98859799]
[1770984336291,2.75708457,79.909,79.851,3.98859799]
[1770984336696,3.20161372,79.9,79.851,3.98859799]
[1770984337398,2.74465663,79.878,79.832,4.1176407]
[1770984337993,11.2761,79.875,79.832,4.1176407]
[1770984338192,14.02075663,79.875,79.832,4.1176407]
[1770984338589,11.277,79.868,79.832,4.1176407]
[1770984340696,2.74465663,79.874,79.832,4.1176407]
[1770984340996,11.2759,79.876,79.832,4.1176407]
[1770984341598,11.2747,79.885,79.841,4.1176407]
[1770984343502,11.2736,79.893,79.841,4.1176407]
[1770984343702,2.67701601,79.892,79.841,4.1176407]
[1770984344704,11.2742,79.888,79.841,4.1176407]
[1770984345299,11.2742,79.888,79.844,4.1176407]
[1770984346805,11.2731,79.896,79.851,4.1176407]
[1770984347706,11.2731,79.896,79.854,4.1176407]
[1770984349013,13.91344263,79.905,79.859,11.2782]
[1770984349209,13.91344263,79.905,79.86,4.1176407]
[1770984350009,13.91344263,79.905,79.863,4.1176407]
[1770984350214,2.60286001,79.901,79.863,4.1176407]
[1770984350413,2.60286001,79.901,79.85,4.1176407]
[1770984351814,11.2727,79.899,79.855,15.3964407]
[1770984352003,11.2727,79.899,79.84,3.2115049]
[1770984352004,11.2727,79.899,79.856,4.1176407]
[1770984353618,2.60286001,79.901,79.86,4.1176407]
[1770984353915,2.61465866,79.913,79.86,4.1176407]
[1770984354312,3.2115049,79.91,79.86,4.1176407]
[1770984354514,2.61465866,79.909,79.86,4.1176407]
[1770984354715,11.2726,79.9,79.86,4.1176407]
[1770984355222,2.61465866,79.909,79.86,4.1176407]
[1770984356721,11.2716,79.907,79.862,4.1176407]
[1770984357112,2.61465866,79.909,79.862,4.1176407]
[1770984357824,2.61465866,79.909,79.865,4.1176407]
[1770984358113,2.62667991,79.921,79.865,4.1176407]
[1770984358319,2.62667991,79.909,79.853,4.1176407]
[1770984358520,13.89877991,79.903,79.865,11.2774]
[1770984359008,2.62667991,79.903,79.865,11.2774]
[1770984359207,9.46933328,79.935,79.864,4.1176407]
[1770984359208,2.62566567,79.917,79.864,4.1176407]
[1770984360619,2.61911579,79.911,79.864,4.1176407]
[1770984361822,11.2701,79.917,79.864,4.1176407]
[1770984362029,2.61537317,79.923,79.884,4.17218864]
[1770984362522,11.2689,79.926,79.884,4.17218864]
[1770984363822,3.2115049,79.94,79.827,175.5098]
[1770984363823,11.2679,79.933,79.886,4.17218864]
[1770984364013,2.63474809,79.934,79.886,4.17218864]
[1770984364209,2.63474809,79.929,79.886,4.17218864]
[1770984364411,2.63474809,79.927,79.886,4.17218864]
[1770984364624,2.63474809,79.925,79.886,4.17218864]
[1770984364812,2.63474809,79.923,79.886,4.17218864]
[1770984365017,2.63474809,79.921,79.886,4.17218864]
[1770984365216,9.53630685,79.92,79.886,4.17218864]
[1770984365418,9.53630685,79.919,79.886,4.17218864]
[1770984365623,9.53630685,79.918,79.886,4.17218864]
[1770984365818,11.2699,79.919,79.886,4.17218864]
[1770984366018,9.56025139,79.918,79.886,4.17218864]
[1770984366215,11.2699,79.919,79.886,4.17218864]
[1770984366413,11.2702,79.917,79.886,4.17218864]
[1770984367321,2.65406051,79.932,79.888,4.17218864]
[1770984367625,115.16,79.958,79.843,37.41]
[1770984367626,2.65406051,79.929,79.861,4.17218864]
[1770984367827,3.2115049,79.93,79.879,11.2754]
[1770984367828,11.2698,79.919,79.879,11.2754]
[1770984368028,9.57105165,79.918,79.879,15.44758864]
[1770984368331,2.65406051,79.916,79.879,15.44758864]
[1770984368529,11.2706,79.913,79.879,4.17218864]
[1770984368725,2.65406051,79.909,79.867,4.17218864]
[1770984368928,2.65406051,79.907,79.867,4.17218864]
[1770984369228,2.6630933,79.905,79.867,4.17218864]
[1770984369432,12.23284699,79.904,79.867,4.17218864]
[1770984369631,9.56975369,79.903,79.867,4.17218864]
[1770984369826,9.56975369,79.902,79.867,4.17218864]
[1770984370025,9.56975369,79.901,79.867,4.17218864]
[1770984370227,9.56975369,79.9,79.867,4.17218864]
[1770984370425,9.56975369,79.899,79.867,4.17218864]
[1770984370626,9.56975369,79.898,79.867,4.17218864]
[1770984370828,9.56975369,79.897,79.867,4.17218864]
[1770984371032,11.2721,79.903,79.867,4.17218864]
[1770984371232,9.57591564,79.902,79.867,4.17218864]
[1770984371434,9.57591564,79.901,79.867,4.17218864]
[1770984371632,9.57591564,79.9,79.87,11.2767]
[1770984371829,9.57591564,79.899,79.87,11.2767]
[1770984372031,9.57591564,79.898,79.87,11.2767]
[1770984372240,2.6630933,79.904,79.87,11.2767]
[1770984372446,11.2724,79.901,79.867,4.17218864]
[1770984372741,9.57326908,79.9,79.867,4.17218864]
[1770984373040,9.57326908,79.899,79.867,4.17218864]
[1770984373226,9.57326908,79.899,79.84,3.2115049]
[1770984373227,2.59263767,79.897,79.855,4.17218864]
[1770984373428,2.59263767,79.895,79.855,4.17218864]
[1770984373732,2.59263767,79.893,79.855,4.17218864]
[1770984373936,9.57326908,79.892,79.855,4.17218864]
[1770984374236,2.59263767,79.879,79.842,11.2806]
[1770984374442,2.59263767,79.877,79.842,11.2806]
[1770984374641,9.57326908,79.876,79.842,11.2806]
[1770984374837,9.57326908,79.875,79.842,11.2806]
[1770984375040,9.57326908,79.874,79.842,11.2806]
[1770984375240,3.2115049,79.87,79.842,11.2806]
[1770984375545,3.2115049,79.87,79.831,4.17218864]
[1770984375546,2.43278034,79.868,79.831,4.17218864]
[1770984376245,2.43278034,79.868,79.801,4.17218864]
[1770984376437,3.2115049,79.86,79.801,4.17218864]
[1770984376639,2.43278034,79.866,79.819,4.17218864]
[1770984377447,11.2778,79.863,79.821,11.2836]
[1770984377638,2.39976853,79.863,79.819,4.17218864]
[1770984377839,2.39976853,79.859,79.819,4.17218864]
[1770984378733,2.39976853,79.855,79.811,11.285]
[1770984379443,2.39976853,79.855,79.8,3.2115049]
[1770984379444,9.54077904,79.858,79.816,4.17218864]
[1770984379645,2.40130738,79.869,79.821,4.17218864]
[1770984379842,11.2758,79.877,79.821,4.17218864]
[1770984380046,9.53953545,79.876,79.821,4.17218864]
[1770984380247,11.2758,79.877,79.821,4.17218864]
[1770984380446,11.2761,79.875,79.834,4.17218864]
[1770984381846,9.5408582,79.882,79.834,4.17218864]
[1770984382044,2.40130738,79.883,79.841,4.17218864]
[1770984382643,11.2752,79.881,79.841,4.17218864]
[1770984383750,11.2763,79.874,79.841,4.17218864]
[1770984385945,11.2763,79.874,79.831,4.17218864]
[1770984386542,2.47782685,79.882,79.834,4.17218864]
[1770984386846,9.54140926,79.889,79.841,4.17218864]
[1770984387154,2.47782685,79.907,79.851,4.17218864]
[1770984387346,9.54530642,79.906,79.851,4.17218864]
[1770984387648,11.2728,79.898,79.853,4.17218864]
[1770984388151,2.42662881,79.891,79.844,11.2804]
[1770984388345,2.42662881,79.889,79.844,11.2804]
[1770984388545,2.42662881,79.889,79.84,4.17218864]
[1770984389345,2.42662881,79.889,79.851,4.17218864]
[1770984389549,11.2732,79.896,79.851,4.17218864]
[1770984389744,2.4726961,79.895,79.851,4.17218864]
[1770984390752,2.4726961,79.895,79.853,11.279]
[1770984391052,2.43930515,79.893,79.853,11.279]
[1770984393357,2.43930515,79.893,79.859,11.2782]
[1770984398257,2.43930515,79.893,79.853,3.84044853]
[1770984399362,2.43930515,79.893,79.854,11.2789]
[1770984400650,2.43930515,79.893,79.858,15.11884853]
[1770984400966,9.55781655,79.913,79.861,3.84044853]
[1770984401262,2.40231451,79.911,79.861,3.84044853]
[1770984401560,2.40231451,79.909,79.861,3.84044853]
[1770984401763,20.82921655,79.908,79.867,3.84044853]
[1770984401962,9.55781655,79.907,79.867,3.84044853]
[1770984402164,9.55781655,79.906,79.867,3.84044853]
[1770984402357,2.40231451,79.909,79.867,3.84044853]
[1770984402655,9.56058389,79.908,79.867,3.84044853]
[1770984402856,9.56058389,79.907,79.87,3.84044853]